fUST/lending_fUST_20250612
["ID","MTS","AMOUNT","RATE_DAILY","PERIOD"]
[365520413,1749739839483,-1857.1015,0.0002391,2]
[365520414,1749739839492,-151.0,0.0002391,7]
[365520415,1749739839502,-653.453733,0.0002391,7]
[365520416,1749739839513,-653.453733,0.0002391,7]
[365520417,1749739839523,-151.0,0.00023918,7]
[365520418,1749739839532,-151.0,0.00023918,7]
[365520419,1749739839543,-151.0,0.00023918,7]
[365520420,1749739839553,-160.0,0.00023918,3]
[365520421,1749739839563,-160.0,0.00023918,5]
[365520422,1749739839573,-151.0,0.00023918,7]
[365520423,1749739839584,-816.9201482,0.00023921,2]
[365520424,1749739839594,-1000.0,0.00023921,2]
[365520425,1749739839603,-507.66297015,0.00023921,2]
[365520426,1749739839613,-1000.0,0.00023921,2]
[365520427,1749739839623,-1004.61170123,0.00023921,2]
[365520428,1749739839633,-1002.28458443,0.00023921,2]
[365520429,1749739839642,-157.19649346,0.00023921,2]
[365520430,1749739839652,-5132.07328471,0.00023932,2]
[365520431,1749739839662,-5000.0,0.00023932,2]
[365520432,1749739839671,-5000.0,0.00023932,2]
[365520434,1749739839681,-5000.0,0.00023932,2]
[365520435,1749739839690,-5000.0,0.00023932,2]
[365520437,1749739839700,-5000.0,0.00023932,2]
[365520439,1749739839710,-5000.0,0.00023932,2]
[365520441,1749739839720,-5000.0,0.00023932,2]
[365520443,1749739839729,-5000.0,0.00023932,2]
[365520445,1749739839739,-151.0,0.00023932,7]
[365520447,1749739839749,-278.727311,0.00023932,7]
[365520449,1749739839759,-177.877793,0.00023932,7]
[365520451,1749739839769,-177.877793,0.00023932,7]
[365520453,1749739839778,-151.0,0.00023932,7]
[365520455,1749739839787,-151.0,0.00023932,7]
[365520457,1749739839798,-151.0,0.00023932,7]
[365520459,1749739839808,-151.0,0.00023932,7]
[365520461,1749739839819,-340.973112,0.00023932,7]
[365520463,1749739839829,-340.973112,0.00023932,7]
[365520465,1749739839839,-379.932901,0.00023932,7]
[365520467,1749739839848,-379.932901,0.00023932,7]
[365520469,1749739839857,-151.0,0.00023932,7]
[365520470,1749739839867,-460.0,0.00023935,4]
[365520472,1749739839876,-533.35,0.00023935,4]
[365520474,1749739839885,-733.46,0.00023935,4]
[365520476,1749739839894,-684.35,0.00023935,4]
[365520478,1749739839904,-460.0,0.00023935,4]
[365520480,1749739839913,-460.0,0.00023935,4]
[365520482,1749739839922,-460.0,0.00023935,4]
[365520484,1749739839931,-200.0,0.0002394,2]
[365520487,1749739839940,-7961.78739111,0.00023956,2]
[365520489,1749739839949,-500.0,0.0002396,2]
[365520490,1749739839959,-500.0,0.0002396,2]
[365520491,1749739839967,-500.0,0.0002396,2]
[365520492,1749739839975,-500.0,0.0002396,2]
[365520493,1749739839982,-500.0,0.0002396,2]
[365520494,1749739839988,-500.0,0.0002396,2]
[365520495,1749739839995,-500.0,0.0002396,2]
[365520496,1749739840003,-270.62445194,0.0002396,2]
[365520497,1749739840012,-500.0,0.0002396,2]
[365520498,1749739840019,-1029.55286736,0.00023969,10]
[365520499,1749739840028,-506.21001811,0.00023973,2]
[365520500,1749739840036,-500.0,0.00023973,2]
[365520502,1749739840043,-500.0,0.00023973,2]
[365520504,1749739840053,-500.0,0.00023973,2]
[365520506,1749739840062,-500.0,0.00023973,2]
[365520509,1749739840072,-502.29867434,0.00023973,2]
[365520512,1749739840080,-500.0,0.00023973,2]
[365520514,1749739840090,-500.0,0.00023973,2]
[365520516,1749739840099,-503.03399779,0.00023973,2]
[365520518,1749739840111,-500.42355388,0.00023973,2]
[365520521,1749739840122,-500.0,0.00023973,2]
[365520523,1749739840131,-500.0,0.00023973,2]
[365520525,1749739840141,-500.0,0.00023973,2]
[365520527,1749739840150,-500.0,0.00023973,2]
[365520529,1749739840161,-240.58970932,0.00023973,2]
[365520531,1749739840171,-500.0,0.00023973,2]
[365520533,1749739840181,-500.0,0.00023973,2]
[365520535,1749739840191,-500.0,0.00023973,2]
[365520537,1749739840200,-501.03912607,0.00023973,2]
[365520539,1749739840210,-500.0,0.00023973,2]
[365520541,1749739840219,-600.0,0.00023973,2]
[365520543,1749739840229,-500.0,0.00023973,2]
[365520544,1749739840239,-500.0,0.00023973,2]
[365520546,1749739840248,-500.0,0.00023973,2]
[365520548,1749739840258,-500.0,0.00023973,2]
[365520551,1749739840268,-503.79039494,0.00023973,2]
[365520554,1749739840278,-208.0,0.0002399,2]
[365520557,1749739840288,-207.0,0.0002399,2]
[365520560,1749739840297,-1533.0,0.0002399,10]
[365520563,1749739840307,-187.37938749,0.00024,2]
[365520566,1749739840317,-746.52402029,0.00024,2]
[365520569,1749739840327,-117005.62056289,0.00024,60]
[365520572,1749739840336,-101481.32188687,0.00024,30]
[365520623,1749739840569,-500.0,0.00021998,2]
[365520625,1749739840579,-399.15981073,0.00021998,2]
[365520627,1749739840588,-500.0,0.00021998,2]
[365520628,1749739840597,-500.0,0.00021998,2]
[365520630,1749739840607,-500.0,0.00021998,2]
[365520632,1749739840616,-500.0,0.00021998,2]
[365520634,1749739840625,-500.0,0.00022466,2]
[365520636,1749739840636,-250.0,0.00022466,2]
[365520638,1749739840645,-500.0,0.00022466,2]
[365520640,1749739840654,-500.0,0.00022466,2]
[365520642,1749739840664,-500.0,0.00022466,2]
[365520644,1749739840674,-181.452368,0.000236,7]
[365520647,1749739840683,-24983.71808061,0.00024,30]
[365520711,1749739843372,-609.83,0.0002115,4]
[365520713,1749739843383,-609.83,0.00021424,4]
[365520714,1749739843392,-609.83,0.00021698,4]
[365520715,1749739843402,-181.452368,0.000238,7]
[365520717,1749739843412,-181.452368,0.00023921,7]
[365520719,1749739843421,-8104.62952311,0.00024,30]
[365520736,1749739846075,-609.83,0.00021972,4]
[365520737,1749739846084,-31.67323788,0.00021998,2]
[365520739,1749739846207,-482.93136052,0.00021998,2]
[365520740,1749739846215,-609.83,0.00022246,4]
[365520742,1749739846225,-609.83,0.0002252,4]
[365520743,1749739846234,-609.83,0.00022794,4]
[365520744,1749739846243,-609.83,0.00023068,4]
[365520745,1749739846252,-533.78063214,0.00023342,4]
[365520747,1749739874506,638.05633439,0.00024958,60]
[365520749,1749739907430,167.723886,0.00013699,2]
[365520751,1749740056670,1000.0,0.00024658,120]
[365520753,1749740391677,501.0,0.00024657,120]
[365520762,1749740653424,155.00000008,0.00024935,60]
[365520768,1749740876992,159.337691,0.00013699,2]
[365520834,1749741032368,-227.59375679,0.00019573,2]
[365520848,1749741032881,-300.0,0.0001977,2]
[365520849,1749741032892,-300.0,0.0001977,2]
[365520850,1749741032902,-300.0,0.0001977,2]
[365520851,1749741032914,-1200.0,0.0001977,2]
[365520852,1749741032924,-24900.0,0.00019771,2]
[365520853,1749741032935,-184.26541,0.00019843,2]
[365520854,1749741032947,-208.083124,0.00019878,2]
[365520855,1749741032958,-500.0,0.00020164,2]
[365520856,1749741032970,-159.337691,0.00020187,2]
[365520857,1749741032982,-1000.0,0.00021,21]
[365520858,1749741032993,-178.08431407,0.00021048,2]
[365520859,1749741033004,-500.0,0.00021091,2]
[365520860,1749741033015,-500.0,0.00021091,2]
[365520861,1749741033026,-500.0,0.00021091,2]
[365520862,1749741033036,-500.0,0.00021091,2]
[365520863,1749741033047,-500.0,0.00021091,2]
[365520864,1749741033059,-419.94862976,0.00021091,2]
[365520865,1749741033070,-500.0,0.00021091,2]
[365520866,1749741033081,-500.0,0.00021091,2]
[365520867,1749741033096,-623.97260795,0.00021091,2]
[365520868,1749741033107,-500.0,0.00021091,2]
[365520869,1749741033118,-500.0,0.00021091,2]
[365520870,1749741033130,-500.0,0.00021091,2]
[365520871,1749741033141,-500.0,0.00021091,2]
[365520872,1749741033152,-500.0,0.00021091,2]
[365520873,1749741033163,-407.96228859,0.00021091,2]
[365520874,1749741033177,-640.25,0.00021091,2]
[365520875,1749741033190,-500.0,0.00021091,2]
[365520876,1749741033201,-500.0,0.00021091,2]
[365520877,1749741033214,-500.0,0.00021091,2]
[365520878,1749741033227,-499.38169526,0.00021091,2]
[365520879,1749741033239,-385.27566018,0.00021091,2]
[365520880,1749741033251,-600.15831401,0.00021091,2]
[365520881,1749741033263,-500.0,0.00021091,2]
[365520882,1749741033275,-500.0,0.00021091,2]
[365520883,1749741033286,-500.0,0.00021091,2]
[365520884,1749741033297,-500.0,0.00021091,2]
[365520885,1749741033308,-500.0,0.00021091,2]
[365520886,1749741033321,-500.0,0.00021091,2]
[365520887,1749741033332,-500.0,0.00021091,2]
[365520888,1749741033343,-500.0,0.00021091,2]
[365520889,1749741033354,-500.0,0.00021091,2]
[365520890,1749741033364,-500.0,0.00021091,2]
[365520891,1749741033375,-500.0,0.00021091,2]
[365520892,1749741033386,-500.0,0.00021091,2]
[365520893,1749741033398,-500.0,0.00021091,2]
[365520894,1749741033409,-500.0,0.00021091,2]
[365520895,1749741033421,-500.0,0.00021091,2]
[365520896,1749741033432,-300.0,0.00021091,2]
[365520897,1749741033443,-36448.00583298,0.00021092,2]
[365520898,1749741033463,-13551.99416702,0.00021092,2]
[365520899,1749741033476,-164.199,0.00021092,2]
[365520900,1749741033487,-487.97,0.00021095,2]
[365520901,1749741033499,-460.0,0.00021095,4]
[365520902,1749741033509,-808.92,0.00021095,4]
[365520903,1749741033519,-460.0,0.00021095,4]
[365520904,1749741033534,-460.0,0.00021095,4]
[365520905,1749741033543,-460.0,0.00021095,4]
[365520906,1749741033717,-460.0,0.00021095,4]
[365520907,1749741033734,-460.0,0.00021095,4]
[365520908,1749741033745,-460.0,0.00021095,4]
[365520909,1749741033754,-460.0,0.00021095,4]
[365520910,1749741033764,-460.0,0.00021095,4]
[365520911,1749741033774,-460.0,0.00021095,4]
[365520912,1749741033784,-460.0,0.00021095,4]
[365520913,1749741033795,-686.74091865,0.00021095,4]
[365520918,1749741039083,-19.39908135,0.00021095,4]
[365520919,1749741039095,-460.0,0.00021095,4]
[365520921,1749741039105,-625.47,0.00021095,4]
[365520922,1749741039115,-556.95,0.00021148,4]
[365520923,1749741039125,-460.0,0.00021148,4]
[365520924,1749741039135,-460.0,0.00021148,4]
[365520925,1749741039144,-460.0,0.00021148,4]
[365520926,1749741039154,-351.53055056,0.00021148,4]
[365520927,1749741039167,-108.46944944,0.00021148,4]
[365520928,1749741039176,-500.0,0.0002126,2]
[365520929,1749741039185,-792.38912321,0.00021296,2]
[365520934,1749741039297,-272.34087679,0.00021296,2]
[365520935,1749741039307,-409.46912321,0.00021369,2]
[365521025,1749741117500,2584.48315,0.00021,61]
[365521050,1749741867933,158.861251,0.00013699,2]
[365521056,1749742010644,1045.0,0.000246,120]
[365521065,1749742122264,546.098052,0.0002,120]
[365521066,1749742125724,800.0,0.00024657,120]
[365521067,1749742126540,155.0,0.00024936,60]
[365521069,1749742141948,600.0,0.00024657,120]
[365521082,1749742232457,-414.13945403,0.000189,2]
[365521083,1749742232483,-2009.39053655,0.000189,2]
[365521084,1749742232494,-124.90816945,0.0001904,2]
[365521085,1749742232506,-165.78039867,0.0001904,2]
[365521086,1749742232515,-1200.0,0.0001975,2]
[365521087,1749742232525,-2237.57490433,0.00019751,2]
[365521088,1749742232536,-968.28113904,0.00019751,2]
[365521093,1749742232721,-21694.14395663,0.00019751,2]
[365521094,1749742232731,-178.28194346,0.0002,2]
[365521095,1749742232741,-291.681857,0.0002006,2]
[365521097,1749742232751,-500.0,0.00020164,2]
[365521099,1749742232761,-158.861251,0.00020187,2]
[365521101,1749742232771,-250.0,0.00020754,2]
[365521103,1749742232780,-161.14771121,0.00020887,2]
[365521106,1749742232790,-7392.45308877,0.000209,4]
[365521108,1749742232799,-7392.45308848,0.00021038,4]
[365521110,1749742232809,-1031.38245891,0.00021082,2]
[365521112,1749742232818,-300.0,0.00021093,2]
[365521114,1749742232828,-17219.50719034,0.00021094,2]
[365521116,1749742232837,-300.0,0.00021094,2]
[365521118,1749742232846,-488.91,0.00021095,2]
[365521120,1749742232855,-460.0,0.00021095,2]
[365521122,1749742232864,-440.0,0.00021095,2]
[365521124,1749742232873,-783.79,0.00021095,4]
[365521126,1749742232882,-460.0,0.00021095,4]
[365521128,1749742232891,-460.0,0.00021095,4]
[365521129,1749742232903,-164.199,0.00021095,2]
[365521131,1749742232913,-869.09,0.00021095,4]
[365521134,1749742232924,-634.8,0.00021095,4]
[365521136,1749742232933,-1051.61,0.00021095,4]
[365521138,1749742232944,-755.07,0.00021095,4]
[365521140,1749742232954,-460.0,0.00021095,4]
[365521142,1749742232964,-460.0,0.00021095,4]
[365521144,1749742232973,-460.0,0.00021095,4]
[365521145,1749742232983,-460.0,0.00021095,4]
[365521147,1749742232993,-440.0,0.00021095,4]
[365521149,1749742233002,-460.0,0.00021095,4]
[365521151,1749742233012,-460.0,0.00021095,4]
[365521153,1749742233021,-460.0,0.00021095,4]
[365521156,1749742233031,-460.0,0.00021095,4]
[365521157,1749742233041,-460.0,0.00021095,4]
[365521160,1749742233051,-460.0,0.00021095,4]
[365521162,1749742233060,-460.0,0.00021095,4]
[365521163,1749742233070,-460.0,0.00021095,4]
[365521166,1749742233080,-460.0,0.00021095,4]
[365521167,1749742233090,-350.0,0.00021095,2]
[365521169,1749742233099,-634.3,0.00021095,4]
[365521172,1749742233110,-1138.33,0.00021095,4]
[365521174,1749742233120,-188.4402674,0.00021095,2]
[365521176,1749742233130,-592.37548973,0.00021095,2]
[365521178,1749742233140,-738.96,0.00021095,4]
[365521180,1749742233150,-460.0,0.00021095,4]
[365521182,1749742233160,-493.28,0.00021095,4]
[365521184,1749742233172,-7392.45308848,0.00021176,4]
[365521186,1749742233183,-7392.45308848,0.00021314,5]
[365521188,1749742233192,-1063.13,0.00021339,2]
[365521190,1749742233203,-488.91,0.00021369,2]
[365521192,1749742233213,-420.0,0.00021369,2]
[365521194,1749742233223,-783.79,0.00021369,4]
[365521196,1749742233234,-460.0,0.00021369,4]
[365521198,1749742233245,-250.0,0.00021369,4]
[365521200,1749742233256,-869.09,0.00021369,4]
[365521202,1749742233266,-634.8,0.00021369,4]
[365521204,1749742233277,-1051.61,0.00021369,4]
[365521206,1749742233288,-755.07,0.00021369,4]
[365521208,1749742233297,-460.0,0.00021369,4]
[365521210,1749742233307,-460.0,0.00021369,4]
[365521212,1749742233316,-460.0,0.00021369,4]
[365521214,1749742233326,-460.0,0.00021369,4]
[365521215,1749742233335,-460.0,0.00021369,4]
[365521217,1749742233345,-460.0,0.00021369,4]
[365521219,1749742233354,-410.0,0.00021369,4]
[365521221,1749742233364,-460.0,0.00021369,4]
[365521223,1749742233375,-460.0,0.00021369,4]
[365521225,1749742233385,-460.0,0.00021369,4]
[365521227,1749742233395,-460.0,0.00021369,4]
[365521229,1749742233405,-460.0,0.00021369,4]
[365521232,1749742233415,-460.0,0.00021369,4]
[365521234,1749742233428,-180.0,0.00021369,2]
[365521236,1749742233439,-634.3,0.00021369,4]
[365521237,1749742233449,-1138.33,0.00021369,4]
[365521240,1749742233459,-738.96,0.00021369,4]
[365521241,1749742233469,-460.0,0.00021369,4]
[365521243,1749742233479,-493.28,0.00021369,4]
[365521245,1749742233490,-1270.24,0.00021446,4]
[365521247,1749742233499,-460.0,0.00021446,4]
[365521249,1749742233510,-5000.0,0.00021447,2]
[365521251,1749742233520,-151.0,0.00021447,2]
[365521253,1749742233530,-151.0,0.00021447,2]
[365521255,1749742233540,-151.85738502,0.00021447,2]
[365521257,1749742233550,-207.4,0.00021447,2]
[365521259,1749742233563,-1688.0,0.00021447,2]
[365521261,1749742233573,-500.0,0.00021447,2]
[365521263,1749742233584,-500.0,0.00021447,2]
[365521265,1749742233594,-500.0,0.00021447,2]
[365521267,1749742233604,-210.8812712,0.00021447,2]
[365521269,1749742233614,-500.0,0.00021447,2]
[365521271,1749742233623,-500.0,0.00021447,2]
[365521273,1749742233633,-500.0,0.00021447,2]
[365521275,1749742233643,-500.0,0.00021447,2]
[365521277,1749742233653,-500.0,0.00021447,2]
[365521279,1749742233662,-500.0,0.00021447,2]
[365521281,1749742233673,-500.0,0.00021447,2]
[365521283,1749742233682,-500.0,0.00021447,2]
[365521285,1749742233692,-500.0,0.00021447,2]
[365521287,1749742233702,-500.0,0.00021447,2]
[365521289,1749742233712,-500.0,0.00021447,2]
[365521291,1749742233721,-500.0,0.00021447,2]
[365521293,1749742233731,-500.0,0.00021447,2]
[365521295,1749742233740,-500.0,0.00021447,2]
[365521297,1749742233750,-500.0,0.00021447,2]
[365521299,1749742233759,-500.0,0.00021447,2]
[365521301,1749742233769,-500.0,0.00021447,2]
[365521303,1749742233779,-500.0,0.00021447,2]
[365521305,1749742233788,-500.0,0.00021447,2]
[365521307,1749742233798,-500.0,0.00021447,2]
[365521309,1749742233807,-500.0,0.00021447,2]
[365521311,1749742233817,-500.0,0.00021447,2]
[365521312,1749742233826,-500.0,0.00021447,2]
[365521315,1749742233836,-500.0,0.00021447,2]
[365521316,1749742233845,-500.0,0.00021447,2]
[365521318,1749742233855,-500.0,0.00021447,2]
[365521321,1749742233866,-500.0,0.00021447,2]
[365521322,1749742233876,-7392.45308848,0.00021452,5]
[365521324,1749742233887,-674.6,0.000215,2]
[365521326,1749742233898,-1750.45600002,0.00021502,2]
[365521328,1749742233910,-643.96748234,0.00021543,2]
[365521330,1749742233921,-7392.45308848,0.0002159,5]
[365521332,1749742233931,-835.15920933,0.00021599,2]
[365521334,1749742233941,-844.79171733,0.000216,2]
[365521336,1749742233952,-11862.37599647,0.000216,2]
[365521338,1749742233962,-160.0,0.000216,2]
[365521340,1749742233971,-187.37938749,0.00021643,2]
[365521342,1749742233981,-746.52402029,0.00021643,2]
[365521344,1749742233991,-488.91,0.00021643,2]
[365521346,1749742234000,-783.79,0.00021643,4]
[365521348,1749742234010,-460.0,0.00021643,4]
[365521349,1749742234020,-869.09,0.00021643,4]
[365521350,1749742234030,-634.8,0.00021643,4]
[365521351,1749742234041,-1051.61,0.00021643,4]
[365521352,1749742234050,-755.07,0.00021643,4]
[365521353,1749742234060,-460.0,0.00021643,4]
[365521354,1749742234070,-460.0,0.00021643,4]
[365521355,1749742234081,-460.0,0.00021643,4]
[365521356,1749742234092,-460.0,0.00021643,4]
[365521357,1749742234103,-473.62,0.00021643,4]
[365521358,1749742234114,-460.0,0.00021643,4]
[365521359,1749742234125,-460.0,0.00021643,4]
[365521360,1749742234135,-460.0,0.00021643,4]
[365521361,1749742234148,-460.0,0.00021643,4]
[365521362,1749742234159,-460.0,0.00021643,4]
[365521363,1749742234175,-460.0,0.00021643,4]
[365521364,1749742234190,-460.0,0.00021643,4]
[365521365,1749742234200,-634.3,0.00021643,4]
[365521366,1749742234210,-1138.33,0.00021643,4]
[365521368,1749742234220,-738.96,0.00021643,4]
[365521370,1749742234230,-460.0,0.00021643,4]
[365521372,1749742234240,-493.28,0.00021643,4]
[365521374,1749742234251,-358.55055129,0.00021699,2]
[365521437,1749742238532,-500.0,0.00021093,2]
[365521438,1749742238542,-500.0,0.00021093,2]
[365521439,1749742238552,-609.75,0.00021093,2]
[365521440,1749742238561,-500.0,0.00021093,2]
[365521441,1749742238572,-500.0,0.00021093,2]
[365521442,1749742238582,-500.0,0.00021093,2]
[365521443,1749742238593,-200.83635652,0.00021093,2]
[365521444,1749742238603,-500.0,0.00021093,2]
[365521445,1749742238612,-500.0,0.00021093,2]
[365521447,1749742238622,-500.0,0.00021093,2]
[365521449,1749742238632,-500.0,0.00021093,2]
[365521451,1749742238642,-500.0,0.00021093,2]
[365521452,1749742238651,-500.0,0.00021093,2]
[365521454,1749742238661,-500.0,0.00021093,2]
[365521456,1749742238671,-332.61504517,0.00021093,2]
[365521458,1749742238682,-525.35451896,0.00021093,2]
[365521459,1749742238691,-500.0,0.00021093,2]
[365521460,1749742238700,-500.0,0.00021093,2]
[365521461,1749742238709,-500.0,0.00021093,2]
[365521462,1749742238718,-500.0,0.00021093,2]
[365521463,1749742238727,-500.0,0.00021093,2]
[365521464,1749742238736,-500.0,0.00021093,2]
[365521465,1749742238745,-320.12439923,0.00021095,4]
[365521468,1749742238757,-139.87560077,0.00021095,4]
[365521470,1749742238766,-460.0,0.00021095,4]
[365521472,1749742238775,-460.0,0.00021369,4]
[365521474,1749742238784,-460.0,0.00021369,4]
[365521475,1749742238792,-460.0,0.00021643,4]
[365521476,1749742238800,-460.0,0.00021643,4]
[365521477,1749742238807,-285.41693103,0.00021699,2]
[365521478,1749742238816,-1270.24,0.0002172,4]
[365521479,1749742238825,-460.0,0.0002172,4]
[365521480,1749742238835,-7392.45308848,0.00021728,5]
[365521481,1749742238844,-500.0,0.00021731,2]
[365521482,1749742238853,-500.0,0.00021731,2]
[365521483,1749742238863,-500.0,0.00021731,2]
[365521484,1749742238872,-168.0,0.00021744,2]
[365521485,1749742238881,-168.0,0.0002177,2]
[365521486,1749742238890,-500.0,0.00021793,2]
[365521487,1749742238899,-643.96748232,0.00021856,2]
[365521488,1749742238912,-504.89740787,0.0002186,2]
[365521489,1749742238921,-7392.45308848,0.00021866,6]
[365521490,1749742238933,-353.07,0.00021889,3]
[365521491,1749742238943,-500.0,0.00021889,2]
[365521492,1749742238952,-160.0,0.00021889,2]
[365521493,1749742238962,-423.69,0.0002189,3]
[365521494,1749742238971,-424.26423502,0.00021896,2]
[365521495,1749742238982,-160.0,0.00021896,2]
[365521496,1749742238992,-160.0,0.00021896,2]
[365521498,1749742239001,-213.20212768,0.00021899,2]
[365521500,1749742239010,-229.7508257,0.00021899,2]
[365521502,1749742239019,-324.81213615,0.000219,2]
[365521504,1749742239029,-1201.41931614,0.000219,2]
[365521506,1749742239038,-160.0,0.00021905,3]
[365521508,1749742239048,-500.0,0.00021917,2]
[365521510,1749742239057,-488.91,0.00021917,2]
[365521512,1749742239067,-460.0,0.00021917,4]
[365521514,1749742239077,-869.09,0.00021917,4]
[365521516,1749742239086,-634.8,0.00021917,4]
[365521518,1749742239096,-1051.61,0.00021917,4]
[365521520,1749742239105,-755.07,0.00021917,4]
[365521522,1749742239115,-524.1,0.00021917,4]
[365521524,1749742239125,-460.0,0.00021917,4]
[365521526,1749742239134,-460.0,0.00021917,4]
[365521528,1749742239143,-460.0,0.00021917,4]
[365521530,1749742239152,-460.0,0.00021917,4]
[365521532,1749742239162,-460.0,0.00021917,4]
[365521534,1749742239171,-460.0,0.00021917,4]
[365521536,1749742239183,-460.0,0.00021917,4]
[365521538,1749742239191,-460.0,0.00021917,4]
[365521540,1749742239201,-460.0,0.00021917,4]
[365521542,1749742239210,-634.3,0.00021917,4]
[365521544,1749742239219,-1138.33,0.00021917,4]
[365521546,1749742239229,-738.96,0.00021917,4]
[365521548,1749742239238,-460.0,0.00021917,4]
[365521550,1749742239247,-493.28,0.00021917,4]
[365521552,1749742239257,-460.0,0.00021917,4]
[365521554,1749742239266,-428.58,0.00021917,4]
[365521556,1749742239276,-400.0,0.00021918,7]
[365521558,1749742239285,-500.0,0.00021973,2]
[365521560,1749742239295,-500.0,0.00021973,2]
[365521562,1749742239304,-500.0,0.00021973,2]
[365521564,1749742239314,-500.0,0.00021973,2]
[365521566,1749742239324,-500.0,0.00021973,2]
[365521568,1749742239334,-500.0,0.00021973,2]
[365521570,1749742239344,-500.0,0.00021973,2]
[365521572,1749742239354,-211.69068759,0.00021973,2]
[365521574,1749742239364,-500.0,0.00021973,2]
[365521576,1749742239373,-500.0,0.00021973,2]
[365521578,1749742239383,-176.54,0.00021985,3]
[365521580,1749742239393,-898.2,0.00021985,10]
[365521582,1749742239403,-500.0,0.00021994,2]
[365521584,1749742239413,-579.41186751,0.00021994,2]
[365521586,1749742239422,-500.0,0.00021994,2]
[365521588,1749742239435,-500.0,0.00021994,2]
[365521590,1749742239444,-500.0,0.00021994,2]
[365521592,1749742239455,-500.0,0.00021994,2]
[365521594,1749742239465,-500.0,0.00021994,2]
[365521596,1749742239475,-500.0,0.00021994,2]
[365521598,1749742239485,-500.0,0.00021994,2]
[365521600,1749742239495,-500.0,0.00021994,2]
[365521602,1749742239504,-500.0,0.00021994,2]
[365521603,1749742239514,-550.0,0.00021994,2]
[365521605,1749742239524,-500.0,0.00021994,2]
[365521607,1749742239533,-175.0,0.00021994,2]
[365521609,1749742239543,-514.51142998,0.00021994,2]
[365521611,1749742239553,-209.3074452,0.00021994,2]
[365521613,1749742239563,-450.0,0.00021994,2]
[365521615,1749742239572,-1270.24,0.00021994,4]
[365521617,1749742239581,-460.0,0.00021994,4]
[365521619,1749742239591,-5000.0,0.00021995,2]
[365521621,1749742239601,-337590.0056643,0.00021995,2]
[365521623,1749742239611,-1000.0,0.00022,22]
[365521625,1749742239621,-166.0,0.00022,2]
[365521627,1749742239630,-7392.45308848,0.00022003,6]
[365521629,1749742239640,-500.0,0.00022007,2]
[365521630,1749742239650,-500.0,0.00022007,2]
[365521631,1749742239660,-643.96748232,0.00022012,2]
[365521632,1749742239670,-168.0,0.00022132,2]
[365521633,1749742239684,-7392.45308848,0.00022141,6]
[365521634,1749742239694,-643.96748232,0.00022168,2]
[365521635,1749742239704,-488.91,0.00022191,2]
[365521636,1749742239713,-460.0,0.00022191,4]
[365521637,1749742239723,-869.09,0.00022191,4]
[365521638,1749742239732,-634.8,0.00022191,4]
[365521639,1749742239742,-1051.61,0.00022191,4]
[365521640,1749742239752,-755.07,0.00022191,4]
[365521641,1749742239762,-460.0,0.00022191,4]
[365521642,1749742239771,-460.0,0.00022191,4]
[365521643,1749742239781,-460.0,0.00022191,4]